Cogmind - Beta 17 @@@ ROGUE MODE // 2026.06.23 @ 12:01:32 Player: Lolterzard Result: Destroyed by 4M-M4G(j) with Overtuned Pulse Rifle Performance ------------- Evolutions (0) 0 Regions Visited (3) 600 Robots Destroyed (24) 120 Value Destroyed (511) 511 Prototype IDs (1) 20 Alien Tech Used (0) 0 Bonus (0) 0 TOTAL SCORE: 1251 Bonus ------- None Cogmind --------- Core Integrity 0/250 Matter 300/300 Energy 100/100 System Corruption 0% Temperature Cool (12) Movement Rolling (100) Location -9/Recycling Parts ------- > --- POWER (1) -------- (None) > --- PROPULSION (2) --- Compact Wheel > --- UTILITY (2) ------ Scrap Engine > --- WEAPON (2) ------- (None) > --- INVENTORY (5) ---- Wheel Grenade Launcher Grenade Launcher Grenade Launcher Peak State ------------ > --- POWER ------------ Light Ion Engine > --- PROPULSION ------- Compact Wheel Compact Wheel > --- UTILITY ---------- Scrap Engine > --- WEAPON ----------- Heavy Assault Rifle > --- INVENTORY -------- Grenade Launcher Grenade Launcher Grenade Launcher [Rating: 23] Favorites ----------- Power Light Ion Engine Engine Light Ion Engine Propulsion Light Treads Treads Light Treads Wheel Compact Wheel Utility Seismic Detector Device Seismic Detector Storage Large Storage Unit Weapon Assault Rifle Ballistic Gun Assault Rifle Launcher Grenade Launcher Build | -11 -10 -10 -9 ------- Run | Yrd Mat Sub Rec Slots Evolved . | . . . . Power . | . . . . Propulsion . | . . . . Utility . | . . . . Weapon . | . . . . Parts Attached 18 | 8 2 6 2 Power 2 | 1 . 1 . Engine 2 | 1 . 1 . Core . | . . . . Reactor . | . . . . Propulsion 4 | 2 . 2 . Treads 2 | 2 . . . Leg . | . . . . Wheel 2 | . . 2 . Hover . | . . . . Flight . | . . . . Utility 5 | 3 1 . 1 Device 3 | 2 . . 1 Storage 2 | 1 1 . . Processor . | . . . . Hackware . | . . . . Protection . | . . . . Artifact . | . . . . Weapon 7 | 2 1 3 1 Energy Gun . | . . . . Energy Cannon . | . . . . Ballistic Gun 4 | 2 . 1 1 Ballistic Cannon . | . . . . Launcher 3 | . 1 2 . Special Weapon . | . . . . Impact Weapon . | . . . . Slashing Weapon . | . . . . Piercing Weapon . | . . . . Special Melee Weapon . | . . . . Unidentified Prototypes 1 | . . . 1 Parts Lost 10 | . . 4 6 Power 2 | . . 1 1 Propulsion 3 | . . 2 1 Utility 1 | . . . 1 Weapon 4 | . . 1 3 Highest Loss Streak 5 | . . 2 5 To Critical Strikes . | . . . . Average Backups 8 | 2 9 10 8 Power . | . 1 . . Propulsion 1 | 1 2 1 1 Utility 1 | . 1 2 1 Weapon 4 | . 4 5 5 Tool/Special . | . . . . Unused Backups 3 | . . . 3 Power . | . . . . Propulsion 1 | . . . 1 Utility . | . . . . Weapon 2 | . . . 2 Tool/Special . | . . . . Average Slot Usage (%) 98 | . 100 97 98 Engine 13 | . 14 13 13 Treads 14 | . 28 24 . Wheel 13 | . . 1 27 Device 14 | . 14 14 14 Storage 13 | . 14 14 13 Ballistic Gun 21 | . 26 12 24 Launcher 6 | . 1 15 2 Peak Build Rating 23 | 7 8 8 23 Average Rating 7 | 5 7 7 8 On Entrance 5 | . 7 8 7 Avg Prop Armor Cover (%) 27 | 27 . . . Naked Turns . | . . . . Heaviest Build 30 | 12 29 30 30 Greatest Support 40 | 40 40 40 32 Greatest Overweight (x) 3 | 3 . 1 . Average Overweight (x) . | . . . . Largest Inventory Capacity 15 | 8 15 15 15 Average Capacity 13 | 7 14 15 14 Most Carried 11 | 5 11 11 10 Average Carried 8 | 3 9 10 8 Final Capacity 15 | 8 15 15 5 Final Carried 11 | 5 11 8 4 Class Distribution -------------------- 100% | Mutant Dominant Class ---------------- Mutant | -10/Materials Mutant | -10/Subcaves Mutant | -9/Recycling Resources | -11 -10 -10 -9 ----------- Run | Yrd Mat Sub Rec Matter Collected 806 | 300 62 179 265 Remotely . | . . . . Salvage Created 701 | 100 84 116 401 Parts 43 | 10 9 11 13 Haulers Intercepted . | . . . . Recyclers Shooed 1 | . . . 1 Parts Field Recycled . | . . . . Retrieved Matter . | . . . . Parts Self-Destructed 11 | . . 11 . Prevented . | . . . . Parts Restored . | . . . . Kills | -11 -10 -10 -9 ------- Run | Yrd Mat Sub Rec Combat Hostiles Destroyed 15 | . 4 8 3 Guns 6 | . 1 2 3 AOE 9 | . 3 6 . Classes Destroyed 11 | 2 3 2 4 Builder 1 | . . . 1 Tunneler 2 | 2 . . . Recycler 4 | 1 . . 3 Turret 1 | . . 1 . Watcher 1 | . 1 . . Swarmer 7 | . 3 4 . Grunt 1 | . 1 . . Sentry 1 | . . . 1 Demolisher 1 | . . . 1 Programmer 1 | . . . 1 Subdweller 4 | . . 4 . Best Kill Streak 4 | 3 3 4 3 Combat Bots Only 4 | . 3 4 1 Max Kills in Single Turn 2 | 1 2 2 1 Gunslinging . | . . . . Exploded 2 | . 2 2 . Melee . | . . . . Uniques/NPCs Destroyed . | . . . . Combat | -11 -10 -10 -9 -------- Run | Yrd Mat Sub Rec Hostile Shots Fired 130 | . 15 72 43 Missed 42 | . 5 28 9 Hits 88 | . 10 44 34 Projectile 88 | . 10 44 34 AOE 1 | . . . 1 Critical Strikes 2 | . . 1 1 Damage Taken 1277 | . 86 503 688 Core 252 | . 17 16 219 Absorbed by Shields . | . . . . Core Remaining (%) 100 | 100 . . . Volleys Fired 60 | 5 16 21 18 Largest 2 | 2 2 2 2 Hottest 60 | 40 50 60 43 Shots Fired 116 | 10 31 40 35 Gun 91 | 10 29 17 35 Cannon . | . . . . Launcher 25 | . 2 23 . Special . | . . . . Kinetic 91 | 10 29 17 35 Thermal . | . . . . Explosive 25 | . 2 23 . Electromagnetic . | . . . . Robot Hit Streak 10 | 5 4 10 10 Robot Miss Streak 4 | 1 2 4 1 Penetration Max . | . . . . Secondary Targets . | . . . . Shots Hit Robots 70 | 7 17 25 21 Core Hits 52 | 4 9 24 15 Critical Kills . | . . . . Critical Parts Destroyed 1 | . . . 1 Critical Strikes 1 | . . . 1 Destroy 1 | . . . 1 Melee Attacks . | . . . . Impact . | . . . . Slashing . | . . . . Piercing . | . . . . Sneak Attacks . | . . . . Combat Hostiles . | . . . . Follow-up Attacks . | . . . . Damage Inflicted 1631 | 74 253 1046 258 Guns 568 | 74 147 94 253 Cannons . | . . . . Explosions 1058 | . 106 952 . Melee . | . . . . Ramming 5 | . . . 5 Kinetic 568 | 74 147 94 253 Thermal . | . . . . Explosive 1058 | . 106 952 . Electromagnetic . | . . . . Impact . | . . . . Slashing . | . . . . Piercing . | . . . . Highest Corruption . | . . . . Average Corruption . | . . . . Corruption Purged . | . . . . Corruption Blocked . | . . . . Overload Shots . | . . . . Overflow Damage 4 | . . 4 . Projectiles . | . . . . Explosions 4 | . . 4 . Melee . | . . . . Knockbacks . | . . . . Impact . | . . . . Kinetic . | . . . . Secondary . | . . . . Self-Inflicted Damage 2 | . . . 2 Shots . | . . . . Rammed 2 | . . . 2 Targets Rammed 2 | . . . 2 Kicked . | . . . . Crushed . | . . . . Highest Temperature 11 | . 6 . 11 Average Temperature 5 | . 6 . 4 Received Heat Transfer 441 | . 24 153 264 Siege Activations . | . . . . Martial Activations . | . . . . Shielding Activations . | . . . . Robots Disrupted . | . . . . Combat Hostiles . | . . . . Robots Corrupted . | . . . . Combat Hostiles . | . . . . Parts Fried . | . . . . Impact Corruptions . | . . . . Robots Melted . | . . . . Combat Hostiles . | . . . . Parts Melted . | . . . . Heat Transferred . | . . . . Parts Sabotaged . | . . . . Parts Stolen . | . . . . Parts Stripped . | . . . . Power Chain Reactions . | . . . . Alert | -11 -10 -10 -9 ------- Run | Yrd Mat Sub Rec Maximum Alert Level . | . . . . Low Security (%) 100 | 100 100 . 100 Level 1 . | . . . . Level 2 . | . . . . Level 3 . | . . . . Level 4 . | . . . . Level 5 . | . . . . High Security . | . . . . Max Security . | . . . . Peak Influence 86 | 10 86 . 54 Initial 42 | . . . 42 Average 10 | 1 13 . 11 Influence Increases 409 | 15 127 175 92 Destroy 0b10 Robot/C 240 | . 80 100 60 Destroy 0b10 Robot/NC 40 | 15 5 . 20 Destroy Leader 22 | . 22 . . Successful Hack 16 | . 4 . 12 Destroy Structure 16 | . 16 . . Lose Combat Pursuer 75 | . . 75 . Influence Decreases 409 | 15 51 162 181 Entered New Map 84 | . . 37 47 Time Decay 278 | 15 51 85 127 Lost Part 47 | . . 40 7 Squads Dispatched 1 | . 1 . . Investigation 1 | . 1 . . Extermination . | . . . . Reinforcement . | . . . . Assault . | . . . . Garrison . | . . . . Intercept . | . . . . Searches Triggered . | . . . . Construction Impeded . | . . . . Haulers Reinforced . | . . . . Active Scanning Responses . | . . . . Cargo Convoy Interrupts . | . . . . Stealth | -11 -10 -10 -9 --------- Run | Yrd Mat Sub Rec Distress Signals . | . . . . Communications Jammed . | . . . . Distress Signals . | . . . . Times Spotted 25 | . 6 13 6 Peak Tracking Total 5 | . 3 2 5 Tactical Retreats 2 | . . 2 . Traps | -11 -10 -10 -9 ------- Run | Yrd Mat Sub Rec Traps Triggered . | . . . . Indirectly . | . . . . Trap Hack Attempts . | . . . . Triggered . | . . . . Disarmed . | . . . . Reprogrammed . | . . . . Reused . | . . . . Traps Extracted . | . . . . Installed . | . . . . Triggered . | . . . . Machines | -11 -10 -10 -9 ---------- Run | Yrd Mat Sub Rec Machines Disabled 4 | . . 4 . Max in Single Turn 3 | . . 3 . Machines Repaired . | . . . . Machines Dismantled . | . . . . Machines Sabotaged . | . . . . Overloaded Fab Kills . | . . . . Hacking | -11 -10 -10 -9 --------- Run | Yrd Mat Sub Rec Machines Accessed 10 | . 3 . 7 Terminals 7 | . 3 . 4 Fabricators . | . . . . Repair Stations . | . . . . Recycling Units 1 | . . . 1 Scanalyzers . | . . . . Garrison Access . | . . . . Total Hacks 43 | . 6 . 37 Successful 35 | . 4 . 31 Failed 8 | . 2 . 6 Catastrophic 2 | . 2 . . Database Lockouts . | . . . . Manual . | . . . . Terminals 15 | . 6 . 9 Fabricators . | . . . . Repair Stations . | . . . . Recycling Units 2 | . . . 2 Scanalyzers . | . . . . Garrison Access . | . . . . Terminal Hacks 33 | . 4 . 29 Record 24 | . . . 24 Branch Access Points 1 | . . . 1 Alert Level 1 | . . . 1 Locate Traps 2 | . 2 . . Patrol Status 1 | . 1 . . Transport Status 1 | . . . 1 Hauler Manifests 1 | . 1 . . Release Object 2 | . . . 2 Fabricator Hacks . | . . . . Repair Station Hacks . | . . . . Recycling Unit Hacks 2 | . . . 2 Retrieve Matter 1 | . . . 1 Retrieve Components 1 | . . . 1 Scanalyzer . | . . . . Garrison Access Hacks . | . . . . Unauthorized Hacks . | . . . . Terminals . | . . . . Fabricators . | . . . . Repair Stations . | . . . . Recycling Units . | . . . . Scanalyzers . | . . . . Garrison Access . | . . . . Data Cores Recovered . | . . . . Used . | . . . . Hacking Detections 3 | . 1 . 2 Full Trace Events 2 | . 1 . 1 Feedback Events . | . . . . Feedback Blocked . | . . . . Robot Schematics Acquired . | . . . . Robots Built . | . . . . Authchips . | . . . . Time . | . . . . Total Robot Build Rating . | . . . . Part Schematics Acquired . | . . . . Parts Built . | . . . . Authchips . | . . . . Time . | . . . . Total Part Build Rating . | . . . . Part Studies Acquired . | . . . . Parts Repaired . | . . . . Time . | . . . . Parts Recycled . | . . . . Recycled Matter . | . . . . Retrieved Matter . | . . . . Retrieved Components 2 | . . . 2 Parts Scanalyzed . | . . . . Part Schematics Acquired . | . . . . Parts Damaged . | . . . . Bothacking | -11 -10 -10 -9 ------------ Run | Yrd Mat Sub Rec Used RIF Installer . | . . . . Robots Hacked . | . . . . Non-combat . | . . . . Combat . | . . . . Robot Hacks Applied . | . . . . Relay Couplers Released . | . . . . Fabnet Peak Effective % . | . . . . Robots Rewired 2 | . . . 2 Allies Hacked 1 | . . . 1 Hacks Repelled . | . . . . Allies | -11 -10 -10 -9 -------- Run | Yrd Mat Sub Rec Total Allies 2 | . . . 2 Largest Group 2 | . . . 2 Highest-Rated Group 19 | . . . 19 Highest-Rated Ally 10 | . . . 10 Total Orders . | . . . . Ally Attacks . | . . . . Total Damage . | . . . . Kills . | . . . . Allies Corrupted . | . . . . Allies Melted . | . . . . Intel | -11 -10 -10 -9 ------- Run | Yrd Mat Sub Rec Active Infowar (turns) 1278 | 35 275 425 543 Seismic 1278 | 35 275 425 543 Robot Analysis Total . | . . . . Derelict Logs Recovered . | . . . . Drone Launches . | . . . . Drone Recoveries . | . . . . Exploration | -11 -10 -10 -9 ------------- Run | Yrd Mat Sub Rec Turns Passed 1420 | 163 275 425 557 Spaces Moved 954 | 94 140 234 486 Core 33 | 33 . . . Treads 405 | 61 140 204 . Legs . | . . . . Wheels 516 | . . 30 486 Hover . | . . . . Flight . | . . . . Fastest Speed 50 | 50 160 100 100 Average Speed 125 | 142 160 152 100 Slowest Speed 240 | 200 160 240 100 Overloaded Moves . | . . . . Propulsion Burnouts . | . . . . Robots Hopped . | . . . . Potential Cave-ins . | . . . . Cave-ins Triggered . | . . . . Exploration Rate (%) 36 | 4 33 22 85 Regions Visited 3 Branch Regions 2 Pre-discovered Areas 1 | . . 1 . Known Exits Taken . | . . . . Unknown Exits Taken 3 | 1 1 1 . Scrap Searched 1 | . . 1 . Spaces Dug . | . . . . Terrain Destroyed 106 | . 16 90 . Melee . | . . . . Projectile . | . . . . AOE 106 | . 16 90 . Terrain Rammed . | . . . . Walls Destroyed . | . . . . Machines Disabled . | . . . . Actions | -11 -10 -10 -9 --------- Run | Yrd Mat Sub Rec Total 1059 | 111 162 261 525 Wait . | . . . . Move 951 | 93 139 233 486 Hop . | . . . . Pick Up 13 | 4 5 1 3 Fast Attach 8 | 8 . . . Attach 6 | . . 4 2 Detach 1 | 1 . . . Swap 6 | . 2 2 2 Drop 1 | . . . 1 Fire 60 | 5 16 21 18 Melee . | . . . . Ram 2 | . . . 2 Kick . | . . . . Crush . | . . . . Escape Stasis . | . . . . Rewire 11 | . . . 11 Trap . | . . . . Miscellaneous . | . . . . Route ------- -11/Scrapyard -10/Materials (discovered 3 exits: [*Mat] / [*Min] / [*Sub]) -10/Subcaves -9/Recycling History --------- Turn | Location | Event 3 | -11/Scrapyard | Discovered new exit (range 16) 164 | -11/Scrapyard | Entered Materials 230 | -10/Materials | Discovered new exit (range 13) 315 | -10/Materials | Build established: Mutant 382 | -10/Materials | Discovered new exit (range 15) 406 | -10/Materials | Discovered new exit (range 10) 439 | -10/Materials | Entered Subcaves 504 | -10/Subcaves | Ambushed by Subdwellers from Twisted Machinery 634 | -10/Subcaves | Learned location of Zion (-6) 634 | -10/Subcaves | Met a Zionite searching for "candidates" 636 | -10/Subcaves | A swath of the cavern ceiling suddenly collapsed 761 | -10/Subcaves | Discovered new exit (range 10) 811 | -10/Subcaves | Ambushed by Subdweller buried in earth 811 | -10/Subcaves | Ambushed by Subdweller buried in earth 864 | -10/Subcaves | Entered Recycling 865 | -9/Recycling | Met a Zionite searching for Scraptown 1351 | -9/Recycling | Scanned before Scraplab entrance 1366 | -9/Recycling | Entered Scraplab 1380 | -9/Recycling | Discovered new exit (range 3) 1399 | -9/Recycling | Angered Scraplab inhabitants 1401 | -9/Recycling | Found Prototype Device 1408 | -9/Recycling | Identified Scrap Engine 1416 | -9/Recycling | Core integrity fell below 50% 1421 | -9/Recycling | Core integrity fell below 20% 1421 | -9/Recycling | Destroyed by 4M-M4G(j) with Overtuned Pulse Rifle Last Messages --------------- >>Release Inventory Accessing inventory controls... Prototype released... URGENT: Link to external system right away! Prototype Device integrity failing. 01401_ Acquired Prototype Device. 01401_ Lgt. Assault Rifle destroyed. 01403_ 4M-M4G(j): "Defend the Scraplab!" 01405_ Slammed into 4M-M4G(j). 01407_ Seismic Detector destroyed. 01408_ Dropped Lrg. Storage Unit. 01408_ Identified Scrap Engine. 01409_ Slammed into 4M-M4G(j). 01411_ Lgt. Ion Engine destroyed. 01412_ Acquired Wheel. 01414_ Com. Wheel destroyed. 01415_ 7V-LT4(j) heat spikes uncontrollably. 01418_ Hvy. Assault Rifle destroyed. 01421_ Machine disabled. [Achievement: This Is Interesting...] Map ----- +----------------------------------------------------+ | ?????????????????????????????? | | ?????????????????????????????? | | ##???????????????????????????? | | #???????????????????????????? | | #???????????????????????????? | | #???????????????????????????? | | ###?????????????????????????? | | ""#?????????????????????????? | | Y"#?????????????????????????? | | ""#?????????????????????????? | | ###?????????????????????????? | | #??#######??????????????????? | | ##?# #??????????????????? | | #?# #??????????????????? | | #?# """ #??????????????????? | | #?# """ #???######?????????? | | #?# """ #???# #?????????? | | #?# #???# #??###????? | | ##?# """ ##### #### ##???? | | #??# """ + + #???? | | #??# """ ##### ##### #???? | | #??# #???# #???# #???? | | #??# """ #???# #???# #???? | | #??# """ #???######???# #???? | | #??# """ #????????#####+####? | | #??# #????????#"" @ "#? | | #??# #????????#"& j " #? | | #??#####+#????????#" "#? | | #??##### #????????#"" X"#? | | #??#"""# #????????#"& c "#? | | ####"T"# #????????#" j j""#? | | ###??????#"X c "#? | | ""#??????#" ###? | | """" T"#??????# "" %#!#? | | """" ""#??????# """]!![#? | | """" ###??????##########? | | #??????????????????? | | #??????????????????? | | #####+##+##?????????????????? | | # #?????????????????? | | # "T" #?????????????????? | | # """ #?????????????????? | | # """ #?????????????????? | | / """ #?????????????????? | | # #?????????????????? | | # #?????????????????? | | # #?????????????????? | | ##+########?????????????????? | | #????????????????????????? | | #????????????????????????? | +----------------------------------------------------+ Best States ------------- Heat Dissipation 25 Energy Generation 10 Energy Capacity 125 Matter Stores 300 Matter Capacity 300 Sight Range 16 Terrain Scan Density 10 Evasion (%) 50 Recoil Reduction 2 Item Schematics ----------------- None Robot Schematics ------------------ None Fabricated ------------ Nothing Repaired ---------- Nothing Studied --------- None Alien Tech Used ----------------- None Achievements -------------- This Is Interesting... You May Approach The Wall Challenges ------------ None Game ------ Seed AntigravArmageddonFrame Manual? 0 Play Time 00:10:00 Cumulative 48.3 hours Start 2026.06.23 @ 11:52:00 End 2026.06.23 @ 12:01:32 Sessions 1 Manual Loads 0 Difficulty Rogue Special Mode None Game No. 100 Rogue 100 Adventurer 0 Explorer 0 Win Type - Total 0 Types 0/0/0/0/0/0/0/0/0/0 Lore% 25 Gallery% 24 Achievement% 21 Wizard Run 0 Options --------- Layout 0 ASCII 0 Keyboard 0 Movement Mouse Keybinds 0 Fullscreen 2 Font 24/Smallcaps Map View 76x50 Zoom Use 0% Tactical HUD 1 Map Filters NONE Filters NONE Steam 1 RUN: f5beaa1b-81d2-46b4-a359-b8f0b70718e7